Cogmind - Beta 14 @@@ ROGUE MODE // 2025.03.09 @ 08:26:44 Player: Im100%Black Result: Destroyed by 6S-2EW(R) with Subdweller Laser Performance ------------- Evolutions (0) 0 Regions Visited (3) 600 Robots Destroyed (30) 150 Value Destroyed (667) 667 Prototype IDs (2) 40 Alien Tech Used (0) 0 Bonus (-44) -44 TOTAL SCORE: 1413 Bonus ------- Friendly Fire -44 Cogmind --------- Core Integrity 0/250 Matter 219/300 Energy 90/100 System Corruption 0% Temperature Cool (6) Movement Rolling (80) Location -10/Subcaves Parts ------- > --- POWER (1) -------- (None) > --- PROPULSION (2) --- Wheel > --- UTILITY (2) ------ (None) > --- WEAPON (2) ------- Bore Cannon > --- INVENTORY (5) ---- Spiked Treads Small Storage Unit Experimental Sensor Array Light Armor Plating Peak State ------------ > --- POWER ------------ Light Nuclear Core > --- PROPULSION ------- Wheel Wheel > --- UTILITY ---------- Scrap Shield > --- WEAPON ----------- Heavy Assault Rifle Bore Cannon > --- INVENTORY -------- Experimental Sensor Array Light Armor Plating Heavy Explosive Trap [Rating: 17] Favorites ----------- Power Ion Engine Engine Ion Engine Power Core Light Nuclear Core Propulsion Wheel Treads Light Treads Wheel Wheel Utility Small Storage Unit Device Seismic Detector Storage Small Storage Unit Protection Scrap Shield Weapon Assault Rifle Energy Gun Medium Laser Ballistic Gun Assault Rifle Ballistic Cannon Bore Cannon Launcher Grenade Launcher Impact Weapon Hammer Build | -11 -10 -10 -10 ------- Run | Yrd Mat Min Sub Slots Evolved . | . . . . Power . | . . . . Propulsion . | . . . . Utility . | . . . . Weapon . | . . . . Parts Attached 50 | 7 21 11 11 Power 3 | 1 2 . . Engine 2 | 1 1 . . Core 1 | . 1 . . Reactor . | . . . . Propulsion 10 | 2 5 3 . Treads 1 | . . 1 . Leg . | . . . . Wheel 9 | 2 5 2 . Hover . | . . . . Flight . | . . . . Utility 13 | 2 5 2 4 Device 9 | 1 5 2 1 Storage 1 | 1 . . . Processor . | . . . . Hackware . | . . . . Protection 3 | . . . 3 Artifact . | . . . . Weapon 24 | 2 9 6 7 Energy Gun 4 | 2 2 . . Energy Cannon . | . . . . Ballistic Gun 10 | . 4 3 3 Ballistic Cannon 1 | . . . 1 Launcher 4 | . . 1 3 Special Weapon . | . . . . Impact Weapon 5 | . 3 2 . Slashing Weapon . | . . . . Piercing Weapon . | . . . . Special Melee Weapon . | . . . . Unidentified Prototypes . | . . . . Parts Lost 9 | . 2 2 5 Power 1 | . . . 1 Propulsion 4 | . 1 2 1 Utility 1 | . . . 1 Weapon 3 | . 1 . 2 Highest Loss Streak 5 | . 1 2 5 To Critical Strikes . | . . . . Average Slot Usage (%) 99 | . 99 99 92 Engine 7 | . 13 . . Core 6 | . . 14 13 Wheel 27 | . 27 26 27 Device 13 | . 14 14 7 Storage 13 | . 14 14 7 Energy Gun 4 | . 9 . . Ballistic Gun 18 | . 16 21 16 Launcher 1 | . . 3 3 Impact Weapon 2 | . 1 2 . Peak Build Rating 17 | 7 9 12 17 Average Rating 8 | 4 7 9 14 On Entrance 7 | . 7 9 12 Naked Turns . | . . . . Heaviest Build 35 | 15 15 16 35 Greatest Support 26 | 26 26 20 20 Greatest Overweight (x) 1 | . . 1 1 Average Overweight (x) . | . . . . Largest Inventory Capacity 8 | 8 8 8 8 Average Capacity 7 | 7 8 8 6 Most Carried 8 | 5 8 8 8 Average Carried 7 | 2 7 7 6 Final Capacity 8 | 8 8 8 5 Final Carried 8 | 5 8 8 4 Class Distribution -------------------- 55% | Mutant 44% | Scavenger-Mutant Dominant Class ---------------- Mutant | -10/Materials Scavenger-Mutant | -10/Mines Scavenger-Mutant | -10/Subcaves Resources | -11 -10 -10 -10 ----------- Run | Yrd Mat Min Sub Matter Collected 1110 | 223 571 197 119 Remotely . | . . . . Salvage Created 967 | 47 620 193 107 Parts 60 | 6 35 11 8 Haulers Intercepted 2 | . 2 . . Recyclers Shooed . | . . . . Parts Field Recycled . | . . . . Retrieved Matter . | . . . . Parts Self-Destructed 4 | . . . 4 Prevented . | . . . . Kills | -11 -10 -10 -10 ------- Run | Yrd Mat Min Sub Combat Hostiles Destroyed 22 | . 10 7 5 Melee 1 | . . 1 . Guns 11 | . 8 3 . Cannons 2 | . . . 2 AOE 6 | . . 3 3 Classes Destroyed 11 | 1 8 1 1 Builder 1 | . 1 . . Tunneler 3 | 2 . 1 . Hauler 2 | . 2 . . Recycler 1 | . 1 . . Mechanic 1 | . 1 . . Operator 1 | . 1 . . Watcher 2 | . 2 . . Swarmer 5 | . 3 . 2 Grunt 11 | . 7 4 . Subdweller 3 | . . . 3 Assembled 3 | . . 3 . Best Kill Streak 4 | 2 4 2 2 Combat Bots Only 3 | . 3 2 2 Max Kills in Single Turn 2 | 1 1 2 1 Gunslinging . | . . . . Exploded 1 | . . 1 1 Melee 1 | . . 1 . Uniques/NPCs Destroyed . | . . . . Combat | -11 -10 -10 -10 -------- Run | Yrd Mat Min Sub Hostile Shots Fired 101 | . 42 30 29 Missed 29 | . 9 12 8 Damage Taken 1241 | . 381 324 536 Core 253 | . 42 150 61 Absorbed by Shields . | . . . . Core Remaining (%) 100 | 100 . . . Volleys Fired 71 | 3 36 19 13 Largest 2 | 2 2 2 2 Hottest 100 | 100 100 40 80 Shots Fired 125 | 6 72 28 19 Gun 112 | 6 72 25 9 Cannon 4 | . . . 4 Launcher 9 | . . 3 6 Special . | . . . . Kinetic 60 | . 22 25 13 Thermal 56 | 6 50 . . Explosive 9 | . . 3 6 Electromagnetic . | . . . . Robot Hit Streak 12 | 2 12 8 10 Robot Miss Streak 2 | 1 2 2 2 Penetration Max . | . . . . Secondary Targets 1 | . 1 . . Max Gunslinging Chain 1 | . 1 . . Shots Hit Robots 93 | 4 55 18 16 Core Hits 48 | 2 26 14 6 Critical Kills 3 | . . 2 1 Critical Parts Destroyed 2 | . 2 . . Critical Strikes 7 | 1 3 2 1 Burn 2 | 1 1 . . Destroy 2 | . . 1 1 Smash 3 | . 2 1 . Melee Attacks 41 | . 20 21 . Impact 41 | . 20 21 . Slashing . | . . . . Piercing . | . . . . Sneak Attacks 2 | . 2 . . Combat Hostiles . | . . . . Follow-up Attacks . | . . . . Damage Inflicted 1743 | 77 792 355 519 Guns 956 | 77 566 192 121 Cannons 66 | . . . 66 Explosions 467 | . . 135 332 Melee 247 | . 226 21 . Ramming 7 | . . 7 . Kinetic 545 | . 166 192 187 Thermal 477 | 77 400 . . Explosive 467 | . . 135 332 Electromagnetic . | . . . . Impact 247 | . 226 21 . Slashing . | . . . . Piercing . | . . . . Highest Corruption . | . . . . Average Corruption . | . . . . Corruption Purged . | . . . . Corruption Blocked . | . . . . Overload Shots . | . . . . Overflow Damage 83 | . 83 . . Projectiles . | . . . . Explosions . | . . . . Melee 83 | . 83 . . Knockbacks 1 | . 1 . . Impact 1 | . 1 . . Kinetic . | . . . . Secondary . | . . . . Self-Inflicted Damage 3 | . . 3 . Shots . | . . . . Rammed 2 | . 1 1 . Targets Rammed 2 | . 1 1 . Kicked . | . . . . Crushed . | . . . . Highest Temperature 201 | 97 201 10 14 Average Temperature 53 | 48 62 4 6 Received Heat Transfer 351 | . 195 78 78 Siege Activations . | . . . . Robots Corrupted 3 | . 3 . . Combat Hostiles 2 | . 2 . . Parts Fried 5 | . 5 . . Impact Corruptions 3 | . 3 . . Robots Melted . | . . . . Combat Hostiles . | . . . . Parts Melted 3 | . 3 . . Heat Transferred 1554 | 296 1258 . . Parts Sabotaged . | . . . . Parts Stolen . | . . . . Parts Stripped . | . . . . Power Chain Reactions . | . . . . Alert | -11 -10 -10 -10 ------- Run | Yrd Mat Min Sub Peak Influence 319 | 10 319 90 . Initial 19 | . 6 19 . Average 35 | 2 36 35 . Maximum Alert Level 1 | . 1 . . Low Security (%) 97 | 100 94 100 . Level 1 2 | . 5 . . Level 2 . | . . . . Level 3 . | . . . . Level 4 . | . . . . Level 5 . | . . . . High Security . | . . . . Max Security . | . . . . Squads Dispatched 2 | . 2 . . Investigation . | . . . . Extermination . | . . . . Reinforcement 2 | . 2 . . Assault . | . . . . Garrison . | . . . . Intercept . | . . . . Searches Triggered . | . . . . Construction Impeded . | . . . . Haulers Reinforced . | . . . . Active Scanning Responses . | . . . . Cargo Convoy Interrupts . | . . . . Stealth | -11 -10 -10 -10 --------- Run | Yrd Mat Min Sub Distress Signals 2 | . 1 1 . Communications Jammed . | . . . . Distress Signals . | . . . . Times Spotted 45 | . 20 10 15 Peak Tracking Total 7 | . 3 3 7 Tactical Retreats 4 | . 1 2 1 Traps | -11 -10 -10 -10 ------- Run | Yrd Mat Min Sub Traps Triggered 3 | . . . 3 Indirectly . | . . . . Trap Hack Attempts . | . . . . Triggered . | . . . . Disarmed . | . . . . Reprogrammed . | . . . . Reused . | . . . . Traps Extracted . | . . . . Installed 1 | . . 1 . Triggered . | . . . . Most Traps Carried 2 | . . 2 1 Machines | -11 -10 -10 -10 ---------- Run | Yrd Mat Min Sub Machines Disabled . | . . . . Max in Single Turn . | . . . . Machines Repaired . | . . . . Machines Dismantled . | . . . . Machines Sabotaged . | . . . . Overloaded Fab Kills . | . . . . Hacking | -11 -10 -10 -10 --------- Run | Yrd Mat Min Sub Machines Accessed 7 | . 7 . . Terminals 6 | . 6 . . Fabricators . | . . . . Repair Stations . | . . . . Recycling Units 1 | . 1 . . Scanalyzers . | . . . . Garrison Access . | . . . . Total Hacks 20 | . 20 . . Successful 8 | . 8 . . Failed 12 | . 12 . . Catastrophic 5 | . 5 . . Database Lockouts . | . . . . Manual 4 | . 4 . . Terminals 16 | . 16 . . Fabricators . | . . . . Repair Stations . | . . . . Recycling Units 4 | . 4 . . Scanalyzers . | . . . . Garrison Access . | . . . . Terminal Hacks 6 | . 6 . . Prototype ID Bank 1 | . 1 . . Branch Access Points 1 | . 1 . . Terminal Index 1 | . 1 . . Repair Station Index 1 | . 1 . . Alert Level 1 | . 1 . . Unreport Threat 1 | . 1 . . Fabricator Hacks . | . . . . Repair Station Hacks . | . . . . Recycling Unit Hacks 2 | . 2 . . Report Inventory 2 | . 2 . . Scanalyzer . | . . . . Garrison Access Hacks . | . . . . Unauthorized Hacks . | . . . . Terminals . | . . . . Fabricators . | . . . . Repair Stations . | . . . . Recycling Units . | . . . . Scanalyzers . | . . . . Garrison Access . | . . . . Data Cores Recovered . | . . . . Used . | . . . . Hacking Detections 6 | . 6 . . Full Trace Events 1 | . 1 . . Feedback Events . | . . . . Feedback Blocked . | . . . . Robot Schematics Acquired . | . . . . Robots Built . | . . . . Authchips . | . . . . Time . | . . . . Total Robot Build Rating . | . . . . Part Schematics Acquired . | . . . . Parts Built . | . . . . Authchips . | . . . . Time . | . . . . Total Part Build Rating . | . . . . Parts Repaired . | . . . . Time . | . . . . Parts Recycled . | . . . . Recycled Matter . | . . . . Retrieved Matter . | . . . . Retrieved Components . | . . . . Parts Scanalyzed . | . . . . Part Schematics Acquired . | . . . . Parts Damaged . | . . . . Bothacking | -11 -10 -10 -10 ------------ Run | Yrd Mat Min Sub Used RIF Installer . | . . . . Robots Hacked . | . . . . Non-combat . | . . . . Combat . | . . . . Robot Hacks Applied . | . . . . Relay Couplers Released . | . . . . Fabnet Peak Effective % . | . . . . Robots Rewired . | . . . . Allies Hacked . | . . . . Hacks Repelled . | . . . . Allies | -11 -10 -10 -10 -------- Run | Yrd Mat Min Sub Total Allies . | . . . . Largest Group . | . . . . Highest-Rated Group . | . . . . Highest-Rated Ally . | . . . . Total Orders . | . . . . Ally Attacks . | . . . . Total Damage . | . . . . Kills . | . . . . Allies Corrupted . | . . . . Allies Melted . | . . . . Intel | -11 -10 -10 -10 ------- Run | Yrd Mat Min Sub Robot Analysis Total . | . . . . Derelict Logs Recovered 2 | . . 2 . Drone Launches . | . . . . Drone Recoveries . | . . . . Exploration | -11 -10 -10 -10 ------------- Run | Yrd Mat Min Sub Turns Passed 3061 | 73 1553 1169 266 Spaces Moved 2406 | 56 1135 1004 211 Core 3 | 3 . . . Treads 1 | . . 1 . Legs . | . . . . Wheels 2402 | 53 1135 1003 211 Hover . | . . . . Flight . | . . . . Fastest Speed 50 | 50 80 80 80 Average Speed 85 | 87 89 81 88 Slowest Speed 160 | 90 90 160 95 Overloaded Moves . | . . . . Propulsion Burnouts . | . . . . Robots Hopped . | . . . . Cave-ins Triggered . | . . . . Exploration Rate (%) 55 | 4 99 99 18 Regions Visited 3 Branch Regions 2 Pre-discovered Areas . | . . . . Known Exits Taken 1 | . 1 . . Unknown Exits Taken 2 | 1 . 1 . Scrap Searched 3 | . . 2 1 Spaces Dug 8 | . 7 1 . Terrain Destroyed 58 | . 7 27 24 Melee 8 | . 7 1 . Projectile 1 | . . . 1 AOE 49 | . . 26 23 Terrain Rammed . | . . . . Walls Destroyed . | . . . . Machines Disabled . | . . . . Actions | -11 -10 -10 -10 --------- Run | Yrd Mat Min Sub Total 3190 | 70 1559 1294 267 Wait 580 | . 332 229 19 Move 2403 | 55 1134 1003 211 Hop . | . . . . Pick Up 23 | 5 8 5 5 Fast Attach 7 | 7 . . . Attach 8 | . 2 2 4 Detach 2 | . . . 2 Swap 35 | . 19 9 7 Drop 17 | . 7 4 6 Fire 71 | 3 36 19 13 Melee 41 | . 20 21 . Ram 2 | . 1 1 . Kick . | . . . . Crush . | . . . . Escape Stasis . | . . . . Rewire . | . . . . Trap 1 | . . 1 . Miscellaneous . | . . . . Route ------- -11/Scrapyard -10/Materials (discovered 4 exits: [*Mat x3] / *Min) -10/Mines (discovered 3 exits: [*Mat x2] / [*Sub]) -10/Subcaves (discovered 1 exit: [*Mat]) History --------- Turn | Location | Event 4 | -11/Scrapyard | Discovered new exit (range 16) 74 | -11/Scrapyard | Entered Materials 333 | -10/Materials | Build established: Mutant 640 | -10/Materials | Discovered new exit (range 10) 680 | -10/Materials | Discovered new exit (range 15) 749 | -10/Materials | Identified exit to Mines 751 | -10/Materials | Discovered new exit (range 3) 1627 | -10/Materials | Entered Mines 1628 | -10/Mines | YI-UF0 nonchalantly dropped a Grenade Launcher on the ground 1733 | -10/Mines | Excavation squad dispatched 1733 | -10/Mines | A large section of the Mines collapsed 1880 | -10/Mines | Core integrity fell below 50% 1983 | -10/Mines | Excavation squad dispatched 1984 | -10/Mines | Found a hidden stash of uninstalled traps 2172 | -10/Mines | Learned Materials interactive machine intel 2212 | -10/Mines | Discovered new exit (range 8) 2248 | -10/Mines | Found a damaged Exp. Sensor Array with a note attached 2253 | -10/Mines | Found Prototype Device 2262 | -10/Mines | Learned Materials terminal intel 2276 | -10/Mines | Discovered new exit (range 3) 2309 | -10/Mines | Build established: Scavenger-Mutant 2792 | -10/Mines | Discovered new exit (range 6) 2796 | -10/Mines | Entered Subcaves 2800 | -10/Subcaves | Discovered new exit (range 12) 2824 | -10/Subcaves | Shifting Twisted Machinery released Spk. Treads 2845 | -10/Subcaves | Core integrity fell below 20% 2867 | -10/Subcaves | Shifting Twisted Machinery released Battle Cannon 3051 | -10/Subcaves | Ambushed by swarm of Subdwellers 3056 | -10/Subcaves | Ambushed by Subdwellers from Twisted Machinery 3056 | -10/Subcaves | Ambushed by Subdwellers from Twisted Machinery 3056 | -10/Subcaves | Ambushed by Subdwellers from Twisted Machinery 3062 | -10/Subcaves | Destroyed by 6S-2EW(R) with Subdweller Laser Last Messages --------------- 03053_ 0D-VNF(R) emerges from the Twisted Machinery. 03053_ HV Slug penetrates Wall. 03054_ YC-I84(R) emerges from the Twisted Machinery. 03056_ HV Slug penetrates 0D-VNF(R). 03056_ 0D-VNF(R) destroyed. 03056_ HV Slug penetrates Twisted Machinery. 03056_ J9-7KC(R) angrily emerges from the Twisted Machinery. 03056_ HV Slug penetrates Twisted Machinery. 03056_ S3-WCX(R) angrily emerges from the Twisted Machinery. 03056_ 6S-2EW(R) angrily emerges from the Twisted Machinery. 03057_ Hvy. Assault Rifle destroyed. 03058_ Wheel destroyed. 03058_ Lgt. Nuclear Core destroyed. 03060_ Scrap Shield destroyed. 03060_ Grenade Launcher destroyed. Map ----- +----------------------------------------------------+ | ??????????????????????????????????????????????? | | ??????????????????????????????????????????????? | | ??????????????????????????????????????????????? | | ??????????????????????????????????????????????? | | ??????????????????????????????????????????????? | | ??????????????????????????????????????????????? | | ??????????????????????????????????????????????? | | ????????????####??????????????????????????????? | | ?????????#### ##?????????????????????????????? | | #?####???# ?????####?????????????????????? | | ## #?## ????# ^##????????????????????? | | ?? ???## ###??????????????????? | | ? ???# #??## ###????????????????? | | ??# ???# #### ##???????????????? | | ?## ###?# ## #???????????????? | | ?# ### #???????????????? | | ?# #???????????????? | | ?# #????????????????? | | ?## #??????????????????? | | ??# ##?????????????????? | | ??### ## ## R###???????????????? | | ????## ## #?# R #???????????????? | | ?????# ###### ### R%"##??????????????? | | ????## ##????## ## [RRR #??????????????? | | ??### #??##### %&R#????????????????? | | ?## #?# @=&#?????????????????? | | ## ### # #????????????????? | | # ### ## # ##????????????????? | | ### ##?????# ##? #????????????????? | | ??# #??????## ## ##?? #????????????????? | | ?## #???????# #####????##????????????????? | | ?# ##???????# ???????????????????????????? | | ?# ##????????## #???????????????????????????? | | ?# ##?????????##????????????????????????????? | | ?# #???????????????????????????????????????? | | ?# ##???????????????????????????????????????? | | ?# #????????????????????????????????????????? | | ?# ##????????????????????????????????????????? | | ## #?????????????????????????????????????????? | | # #?????????????????????????????????????????? | | # #?????????????????????????????????????????? | | # ##????????????????????????????????????????? | | ## #????????????????????????????????????????? | | ?# #????????????????????????????????????????? | | ## ##????????????????????????????????????????? | | # #?????????????????????????????????????????? | | ## #?????????????????????????????????????????? | | ?# #?????????????????????????????????????????? | | ?# #?????????????????????????????????????????? | | ## ##????????????????????????????????????????? | +----------------------------------------------------+ Best States ------------- Heat Dissipation 25 Energy Generation 14 Energy Capacity 250 Matter Stores 300 Matter Capacity 300 Sight Range 16 Terrain Scan Range 16 Terrain Scan Density 10 Armor Coverage 800 Evasion (%) 44 Recoil Reduction 1 Item Schematics ----------------- None Robot Schematics ------------------ None Fabricated ------------ Nothing Alien Tech Used ----------------- None Achievements -------------- None Challenges ------------ None Game ------ Seed LinearQuantumTriangulator Manual? 0 Play Time 00:43:12 Cumulative 11.9 hours Start 2025.03.09 @ 07:34:37 End 2025.03.09 @ 08:26:44 Sessions 1 Manual Loads 0 Difficulty Rogue Special Mode None Game No. 13 Rogue 13 Adventurer 0 Explorer 0 Win Type - Total 0 Types 0/0/0/0/0/0/0/0/0 Lore% 10 Gallery% 20 Achievement% 17 Wizard Run 0 Options --------- Layout 2 ASCII 0 Keyboard 1 Movement Arrows Keybinds 0 Fullscreen 1 Font 24/Smallcaps Map View 50x44 Zoom Use 0% Tactical HUD 1 Map Filters NONE Filters NONE Steam 1 RUN: 33639abb-da90-4104-84dd-6089f9974906